bitfinex/quotes_BTCUSD_20241116
["timestamp","ask_amount","ask_price","bid_price","bid_amount"]
[1731740149561,0.14458904,91183.0,91182.0,0.10967]
[1731740149802,0.13360241,91183.0,91182.0,0.10967]
[1731740150015,0.14459226,91183.0,91182.0,0.10967]
[1731740150250,0.14459226,91183.0,91175.0,0.224357]
[1731740150251,0.14459226,91183.0,91176.0,0.219355]
[1731740150525,0.02889932,91182.0,91181.0,0.109671]
[1731740150752,0.13796187,91182.0,91181.0,0.109671]
[1731740150970,0.17907046,91182.0,91180.0,0.000858]
[1731740151193,0.16808218,91181.0,91180.0,0.000858]
[1731740151434,0.18419997,91181.0,91180.0,0.000858]
[1731740152360,0.16808218,91181.0,91180.0,0.000858]
[1731740152604,0.13917219,91181.0,91180.0,0.000858]
[1731740152820,0.16806026,91181.0,91180.0,0.000858]
[1731740153056,0.18417154,91181.0,91180.0,0.000858]
[1731740153272,0.19341596,91181.0,91180.0,0.000858]
[1731740154628,0.30482806,91181.0,91180.0,0.000858]
[1731740156000,0.31852858,91181.0,91180.0,0.000858]
[1731740156495,0.30482806,91181.0,91180.0,0.000858]
[1731740156970,0.32352858,91181.0,91180.0,0.000858]
[1731740158358,0.30982806,91181.0,91180.0,0.000858]
[1731740158809,0.32352858,91181.0,91180.0,0.000858]
[1731740159049,0.30982806,91181.0,91180.0,0.000858]
[1731740159278,0.32340285,91181.0,91180.0,0.000858]
[1731740159534,0.45178027,91181.0,91180.0,0.000858]
[1731740161166,0.32340285,91181.0,91180.0,0.000858]
[1731740161385,0.42169041,91181.0,91180.0,0.000858]
[1731740161615,0.42167883,91181.0,91180.0,0.000858]
[1731740161854,0.4216805,91181.0,91180.0,0.000858]
[1731740162085,0.42168313,91181.0,91180.0,0.000858]
[1731740162303,0.32339581,91181.0,91180.0,0.000858]
[1731740163894,0.32333464,91181.0,91180.0,0.000858]
[1731740164794,0.23471907,91181.0,91180.0,0.000858]
[1731740165007,0.32332272,91181.0,91180.0,0.000858]
[1731740166175,0.42157773,91181.0,91180.0,0.000858]
[1731740166397,0.45164151,91181.0,91180.0,0.000858]
[1731740166608,0.3533865,91181.0,91180.0,0.000858]
[1731740166881,0.32332272,91181.0,91180.0,0.000858]
[1731740167115,0.4707139,91181.0,91180.0,0.000858]
[1731740167354,0.35338086,91181.0,91180.0,0.000858]
[1731740168059,0.32332272,91181.0,91180.0,0.000858]
[1731740170155,0.35337834,91181.0,91180.0,0.000858]
[1731740170364,0.45160285,91181.0,91180.0,0.000858]
[1731740171107,0.45159229,91181.0,91180.0,0.000858]
[1731740171328,0.40783518,91181.0,91180.0,0.000858]
[1731740171544,0.2908088,91181.0,91180.0,0.000858]
[1731740171781,0.3095951,91181.0,91180.0,0.000858]
[1731740172511,0.30959832,91181.0,91180.0,0.000858]
[1731740174342,0.29726851,91181.0,91180.0,0.000858]
[1731740174585,0.32330759,91181.0,91180.0,0.000858]
[1731740174829,0.4215321,91181.0,91180.0,0.000858]
[1731740175093,0.32330759,91181.0,91180.0,0.000858]
[1731740175333,0.32502259,91181.0,91180.0,0.000858]
[1731740175576,0.50503687,91181.0,91180.0,0.000858]
[1731740175815,1.10087534,91181.0,91180.0,0.000858]
[1731740176053,0.109687,91168.0,91167.0,0.0008579]
[1731740176273,0.30733807,91168.0,91167.0,0.0008579]
[1731740176484,0.31824583,91168.0,91167.0,0.0008579]
[1731740177414,0.3533046,91168.0,91167.0,0.0008579]
[1731740177684,0.4304023,91168.0,91167.0,0.0008579]
[1731740177927,0.49852971,91168.0,91167.0,0.0008579]
[1731740178159,0.53392216,91168.0,91167.0,0.0008579]
[1731740178373,0.38663932,91168.0,91167.0,0.0008579]
[1731740179067,0.55135593,91168.0,91167.0,0.0008579]
[1731740179311,0.38663932,91168.0,91167.0,0.0008579]
[1731740179780,0.51482561,91168.0,91167.0,0.0008579]
[1731740180012,0.48477071,91168.0,91167.0,0.0008579]
[1731740180374,0.41669064,91168.0,91167.0,0.0008579]
[1731740180454,0.38663932,91168.0,91167.0,0.0008579]
[1731740180669,0.41669583,91168.0,91167.0,0.0008579]
[1731740181140,0.41668607,91168.0,91167.0,0.0008579]
[1731740181388,0.43015441,91168.0,91167.0,0.0008579]
[1731740181837,0.46021095,91168.0,91167.0,0.0008579]
[1731740182073,0.43015441,91168.0,91167.0,0.0008579]
[1731740182322,0.46021095,91168.0,91167.0,0.0008579]
[1731740183225,0.47985441,91168.0,91167.0,0.0008579]
[1731740183680,0.50991095,91168.0,91167.0,0.0008579]
[1731740184341,0.47985441,91168.0,91167.0,0.0008579]
[1731740184582,0.50991095,91168.0,91167.0,0.0008579]
[1731740185087,0.57792545,91168.0,91167.0,0.0008579]
[1731740185342,0.50989757,91168.0,91167.0,0.0008579]
[1731740186024,0.47985441,91168.0,91167.0,0.0008579]
[1731740186750,0.19484253,91168.0,91167.0,0.0008579]
[1731740187205,0.17880619,91168.0,91167.0,0.0008579]
[1731740189358,0.14875867,91168.0,91167.0,0.0008579]
[1731740189588,0.17880619,91168.0,91167.0,0.0008579]
[1731740190046,0.14875867,91168.0,91167.0,0.0008579]
[1731740190497,0.14875867,91168.0,91167.0,0.1105459]
[1731740190710,0.14875867,91168.0,91167.0,0.0008579]
[1731740190962,0.11997031,91168.0,91167.0,0.0008579]
[1731740191173,0.17880805,91168.0,91167.0,0.0008579]
[1731740191406,0.14875969,91168.0,91167.0,0.0008579]
[1731740193248,0.17880805,91168.0,91167.0,0.0008579]
[1731740195239,0.17882828,91168.0,91167.0,0.0008579]
[1731740198639,0.60451721,91168.0,91167.0,0.0008579]
[1731740198861,0.982984,91168.0,91167.0,0.0008579]
[1731740199096,0.219693,91163.0,91162.0,0.0008582]
[1731740199328,0.32875555,91163.0,91162.0,0.0008582]
[1731740199599,0.54571756,91163.0,91162.0,0.0008582]
[1731740200094,0.76084248,91163.0,91162.0,0.0008582]
[1731740200324,0.3984624,91163.0,91162.0,0.0008582]
[1731740200563,0.39843538,91163.0,91162.0,0.0008582]
[1731740201263,0.56167525,91163.0,91162.0,0.0008582]
[1731740201475,0.41444447,91163.0,91162.0,0.0008582]
[1731740201693,0.56167878,91163.0,91162.0,0.0008582]
[1731740203248,0.41444447,91163.0,91162.0,0.0008582]
[1731740203969,0.41444383,91163.0,91162.0,0.0008582]
[1731740204189,0.19475083,91163.0,91162.0,0.0008582]
[1731740204450,0.17874174,91163.0,91162.0,0.1105522]
[1731740204669,0.13868879,91163.0,91162.0,0.1105522]
[1731740205094,0.11991143,91163.0,91162.0,0.1105522]
[1731740205315,0.13870031,91163.0,91162.0,0.1105522]
[1731740205535,0.11991143,91163.0,91162.0,0.2383522]
[1731740205767,0.11991143,91163.0,91162.0,0.2403522]
[1731740206056,0.11991143,91163.0,91162.0,0.2383522]
[1731740206724,0.04007277,91179.0,91178.0,0.109675]
[1731740206953,0.04007277,91179.0,91178.0,0.111675]
[1731740206954,0.13786422,91179.0,91178.0,0.111675]
[1731740207169,0.12785303,91179.0,91178.0,0.190175]
[1731740209211,0.12783654,91179.0,91178.0,0.190175]
[1731740209423,0.12783654,91179.0,91178.0,0.192175]
[1731740210495,0.12783321,91179.0,91178.0,0.192175]
[1731740211325,0.12954841,91179.0,91178.0,0.192175]
[1731740211534,0.12954841,91179.0,91178.0,0.190175]
[1731740212011,0.13878802,91179.0,91178.0,0.190175]
[1731740212254,0.13878802,91179.0,91178.0,0.237275]
[1731740212469,0.12001736,91179.0,91178.0,0.237275]
[1731740212671,0.11077775,91179.0,91178.0,0.237275]
[1731740213532,0.0017152,91179.0,91178.0,0.237275]
[1731740213968,0.0017152,91179.0,91178.0,0.240275]
[1731740214187,0.0017152,91179.0,91178.0,0.247275]
[1731740214663,0.0017152,91179.0,91178.0,0.39491261]
[1731740215159,0.0017152,91179.0,91178.0,0.270275]
[1731740215391,0.0017152,91179.0,91178.0,0.39491261]
[1731740217180,0.0017152,91179.0,91178.0,0.39691261]
[1731740217596,0.0017152,91179.0,91178.0,0.39491261]
[1731740217810,0.0017152,91179.0,91178.0,0.39291261]
[1731740218021,0.0017152,91179.0,91178.0,0.39491261]
[1731740219131,0.001716,91210.0,91200.0,0.242949]
[1731740219336,0.17538312,91201.0,91200.0,0.36758661]
[1731740219802,0.01066651,91201.0,91200.0,0.36758661]
[1731740219965,0.001716,91210.0,91203.0,0.005]
[1731740220167,0.001716,91210.0,91200.0,0.25093761]
[1731740220370,0.001716,91210.0,91203.0,0.109645]
[1731740228645,0.001716,91210.0,91203.0,0.23428261]
[1731740231277,0.00146623,91204.0,91203.0,0.23428261]
[1731740232889,0.00146623,91204.0,91203.0,0.2730443]
[1731740233203,0.00146623,91204.0,91203.0,0.19134465]
[1731740235802,0.00146623,91204.0,91203.0,0.109645]
[1731740236030,0.00146623,91204.0,91203.0,0.19134465]
[1731740237990,0.00146623,91204.0,91203.0,0.2730443]
[1731740238199,0.00146623,91204.0,91203.0,0.3221443]
[1731740238405,0.00146623,91204.0,91203.0,0.3991443]
[1731740239924,0.00146623,91204.0,91203.0,0.31744465]
[1731740241407,0.00146623,91204.0,91203.0,0.3991443]
[1731740241782,0.00146623,91204.0,91203.0,0.31744465]
[1731740242183,0.00146623,91204.0,91203.0,0.109645]
[1731740242384,0.11052878,91204.0,91203.0,0.109645]
[1731740243249,0.11052878,91204.0,91201.0,0.0008573]
[1731740243448,0.12785824,91203.0,91201.0,0.0008573]
[1731740243681,0.10906255,91203.0,91201.0,0.0008573]
[1731740243884,0.10906255,91203.0,91202.0,0.109646]
[1731740244322,0.12787017,91203.0,91202.0,0.109646]
[1731740244544,0.1371675,91203.0,91202.0,0.109646]
[1731740244717,0.11988903,91203.0,91202.0,0.109646]
[1731740244930,0.10906255,91203.0,91202.0,0.109646]
[1731740245696,0.1278698,91203.0,91202.0,0.109646]
[1731740246340,0.10906255,91203.0,91202.0,0.109646]
[1731740247415,0.10906255,91203.0,91201.0,0.0008573]
[1731740247644,0.01881334,91202.0,91201.0,0.0008573]
[1731740247866,0.12787589,91202.0,91201.0,0.0008573]
[1731740248725,0.17717589,91202.0,91201.0,0.0008573]
[1731740250234,0.17717026,91202.0,91201.0,0.0008573]
[1731740250686,0.17717026,91202.0,91201.0,0.1105043]
[1731740250890,0.18217026,91202.0,91201.0,0.0008573]
[1731740251331,0.19146519,91202.0,91201.0,0.0008573]
[1731740251788,0.17265748,91202.0,91201.0,0.0008573]
[1731740252837,0.36090348,91202.0,91201.0,0.0008573]
[1731740254295,0.36590348,91202.0,91201.0,0.0008573]
[1731740256185,0.36790348,91202.0,91201.0,0.0008573]
[1731740256387,0.36590348,91202.0,91201.0,0.0008573]
[1731740256840,0.38468198,91202.0,91201.0,0.0008573]
[1731740257498,0.38668198,91202.0,91201.0,0.0008573]
[1731740257971,0.39168198,91202.0,91201.0,0.0008573]
[1731740258199,0.58774116,91202.0,91201.0,0.0008573]
[1731740258431,0.39168198,91202.0,91201.0,0.0008573]
[1731740258655,0.53873746,91202.0,91201.0,0.0008573]
[1731740259093,0.53877067,91202.0,91201.0,0.0008573]
[1731740259546,0.52144645,91202.0,91201.0,0.0008573]
[1731740259766,0.54020488,91202.0,91201.0,0.0008573]
[1731740259992,0.3743905,91202.0,91201.0,0.0008573]
[1731740260207,0.39314917,91202.0,91201.0,0.0008573]
[1731740260410,0.3743905,91202.0,91201.0,0.0008573]
[1731740260616,0.49117952,91202.0,91201.0,0.0008573]
[1731740261076,0.48711007,91202.0,91201.0,0.0008573]
[1731740261925,0.53177232,91202.0,91201.0,0.0008573]
[1731740262167,0.43374344,91202.0,91201.0,0.0008573]
[1731740262999,0.43874344,91202.0,91201.0,0.0008573]
[1731740263482,0.60346005,91202.0,91201.0,0.0008573]
[1731740263691,0.51998485,91202.0,91201.0,0.0008573]
[1731740263897,0.53873038,91202.0,91201.0,0.0008573]
[1731740264117,0.70878626,91202.0,91201.0,0.0008573]
[1731740264323,0.70878626,91202.0,91167.0,0.0008576]
[1731740264324,0.005,91168.0,91167.0,0.0008576]
[1731740264539,0.12072947,91168.0,91167.0,0.0008576]
[1731740264792,0.23041647,91168.0,91167.0,0.0008576]
[1731740266090,0.12072947,91168.0,91167.0,0.0008576]
[1731740266523,0.12072947,91168.0,91167.0,0.1105456]
[1731740266524,0.11572947,91168.0,91167.0,0.1105456]
[1731740266961,0.11572947,91168.0,91167.0,0.1905456]
[1731740267183,0.10906255,91168.0,91167.0,0.1905456]
[1731740271535,0.11568011,91168.0,91167.0,0.1105456]
[1731740273802,0.11568011,91168.0,91167.0,0.0008576]
[1731740274026,0.12068011,91168.0,91167.0,0.0008576]
[1731740274232,0.23036711,91168.0,91167.0,0.0008576]
[1731740274672,0.36256711,91168.0,91167.0,0.0008576]
[1731740277188,0.38129787,91168.0,91167.0,0.0008576]
[1731740277429,0.36256711,91168.0,91167.0,0.0008576]
[1731740278690,0.38129787,91168.0,91167.0,0.0008576]
[1731740278873,0.36256711,91168.0,91167.0,0.0008576]
[1731740279430,0.38129787,91168.0,91167.0,0.0008576]
[1731740280715,0.22521087,91168.0,91167.0,0.0008576]
[1731740281096,0.20648011,91168.0,91167.0,0.0008576]
[1731740281305,0.22521087,91168.0,91167.0,0.0008576]
[1731740281890,0.14441087,91168.0,91167.0,0.0008576]
[1731740282090,0.14442699,91168.0,91167.0,0.0008576]
[1731740282563,0.13442699,91168.0,91167.0,0.1105456]
[1731740282741,0.11568011,91168.0,91167.0,0.1105456]
[1731740283138,0.13443547,91168.0,91167.0,0.1105456]
[1731740287395,0.11568011,91168.0,91167.0,0.1567456]
[1731740287634,0.11568011,91168.0,91167.0,0.2357456]
[1731740287839,0.10906255,91168.0,91167.0,0.2357456]
[1731740289829,0.01879659,91177.0,91176.0,0.109677]
[1731740290046,0.10906255,91177.0,91176.0,0.109677]
[1731740290460,0.11568679,91177.0,91176.0,0.109677]
[1731740291534,0.11568679,91177.0,91176.0,0.187577]
[1731740291743,0.11568679,91177.0,91176.0,0.233277]
[1731740291944,0.00999166,91192.0,91191.0,0.109659]
[1731740292186,0.16471661,91183.0,91176.0,0.38847779]
[1731740292358,0.10906255,91182.0,91181.0,0.109671]
[1731740292613,0.11569726,91182.0,91181.0,0.109671]
[1731740292900,0.10906255,91182.0,91181.0,0.109671]
[1731740294007,0.10906255,91182.0,91181.0,0.23428512]
[1731740296040,0.10906255,91182.0,91181.0,0.109671]
[1731740298418,0.11406255,91182.0,91181.0,0.109671]
[1731740298599,0.14389267,91182.0,91181.0,0.109671]
[1731740298843,0.12513502,91182.0,91181.0,0.109671]
[1731740299057,0.14389245,91182.0,91181.0,0.109671]
[1731740299311,0.14389362,91182.0,91181.0,0.109671]
[1731740299479,0.12513502,91182.0,91181.0,0.109671]
[1731740299742,0.14389222,91182.0,91181.0,0.109671]
[1731740299963,0.12513502,91182.0,91181.0,0.109671]
[1731740300186,0.14389226,91182.0,91181.0,0.109671]
[1731740300400,0.12513502,91182.0,91181.0,0.109671]
[1731740302190,0.14389064,91182.0,91181.0,0.109671]
[1731740306303,0.17390531,91182.0,91181.0,0.109671]
[1731740306512,0.005,91180.0,91179.0,0.109674]
[1731740306719,0.13281817,91180.0,91179.0,0.109674]
[1731740306934,0.14389277,91180.0,91179.0,0.109674]
[1731740307366,0.16891489,91180.0,91179.0,0.109674]
[1731740307576,0.12013715,91180.0,91179.0,0.188974]
[1731740309723,0.12013715,91180.0,91177.0,0.268952]
[1731740309724,0.12013715,91180.0,91177.0,0.23073712]
[1731740309937,0.0110746,91180.0,91179.0,0.109673]
[1731740310147,0.005,91187.0,91186.0,0.109665]
[1731740310559,0.01878753,91187.0,91186.0,0.109665]
[1731740311000,0.005,91200.0,91194.0,0.109656]
[1731740311001,0.03006627,91199.0,91194.0,0.109656]
[1731740311194,0.1835097,91195.0,91194.0,0.109656]
[1731740311421,0.19278779,91195.0,91194.0,0.109656]
[1731740311569,0.13713373,91195.0,91194.0,0.109656]
[1731740312180,0.14712655,91195.0,91194.0,0.109656]
[1731740312563,0.13713373,91195.0,91194.0,0.109656]
[1731740313012,0.14712608,91195.0,91194.0,0.109656]
[1731740314745,0.17721006,91195.0,91194.0,0.109656]
[1731740314894,0.11834064,91195.0,91194.0,0.109656]
[1731740315100,0.17722484,91195.0,91194.0,0.109656]
[1731740315315,0.1471396,91195.0,91194.0,0.109656]
[1731740315948,0.17723191,91195.0,91194.0,0.109656]
[1731740316352,0.1471396,91195.0,91194.0,0.109656]
[1731740316801,0.13714391,91195.0,91194.0,0.109656]
[1731740317006,0.14714508,91195.0,91194.0,0.109656]
[1731740317766,0.11834064,91195.0,91194.0,0.109656]
[1731740317976,0.14716171,91195.0,91194.0,0.109656]
[1731740318403,0.14716333,91195.0,91194.0,0.109656]
[1731740318763,0.13715911,91195.0,91194.0,0.109656]
[1731740318980,0.14716288,91195.0,91194.0,0.109656]
[1731740319208,0.13715911,91195.0,91194.0,0.109656]
[1731740321049,0.02809656,91195.0,91194.0,0.31047012]
[1731740321253,0.00927809,91195.0,91194.0,0.31047012]
[1731740321461,0.0017146,91201.0,91200.0,0.109649]
[1731740321677,0.12959611,91201.0,91200.0,0.109649]
[1731740321876,0.14075013,91201.0,91200.0,0.109649]
[1731740322098,0.12959611,91201.0,91200.0,0.109649]
[1731740323049,0.02053356,91201.0,91200.0,0.109649]
[1731740323471,0.0017146,91201.0,91200.0,0.109649]
[1731740324918,0.0017146,91201.0,91200.0,0.1537949]
[1731740325669,0.0017146,91201.0,91200.0,0.109649]
[1731740325670,0.11077715,91201.0,91200.0,0.109649]
[1731740325887,0.11577715,91201.0,91200.0,0.109649]
[1731740326108,0.14130003,91201.0,91200.0,0.109649]
[1731740328282,0.14130003,91201.0,91176.0,0.09821543]
[1731740328283,0.005,91196.0,91185.0,0.219333]
[1731740328436,0.005,91196.0,91177.0,0.0471]
[1731740328437,0.12786495,91195.0,91193.0,0.109656]
[1731740328649,0.13457234,91195.0,91194.0,0.109656]
[1731740328848,0.16465719,91195.0,91194.0,0.109656]
[1731740334762,0.11576994,91195.0,91194.0,0.109656]
[1731740334962,0.14587268,91195.0,91194.0,0.109656]
[1731740335166,0.16468689,91195.0,91191.0,0.109659]
[1731740335541,0.04891695,91194.0,91192.0,0.109658]
[1731740335743,0.1579795,91193.0,91192.0,0.109658]
[1731740335945,0.16468657,91193.0,91192.0,0.109658]
[1731740336553,0.13458383,91193.0,91192.0,0.109658]
[1731740336795,0.16471671,91193.0,91192.0,0.109658]
[1731740337204,0.17472786,91193.0,91192.0,0.109658]
[1731740338198,0.17474491,91193.0,91186.0,0.219329]
[1731740338399,0.01001115,91192.0,91187.0,0.219329]
[1731740338635,0.10906255,91191.0,91190.0,0.10966]
[1731740338799,0.174747,91191.0,91190.0,0.10966]
[1731740339623,0.13460136,91191.0,91190.0,0.15916]
[1731740341053,0.13460656,91191.0,91190.0,0.15916]
[1731740343658,0.13460656,91191.0,91190.0,0.10966]
[1731740344626,0.13460656,91191.0,91190.0,0.15473945]
[1731740344826,0.11576773,91191.0,91190.0,0.15473945]
[1731740345039,0.13460565,91191.0,91190.0,0.15473945]
[1731740345461,0.13460565,91191.0,91190.0,0.10966]
[1731740345875,0.16474395,91191.0,91190.0,0.10966]
[1731740346901,0.11576773,91191.0,91190.0,0.10966]
[1731740347109,0.16473819,91191.0,91190.0,0.10966]
[1731740347711,0.13460252,91191.0,91190.0,0.10966]
[1731740350574,0.13460057,91191.0,91190.0,0.10966]
[1731740350978,0.16473305,91191.0,91190.0,0.10966]
[1731740351400,0.17474529,91191.0,91190.0,0.10966]
[1731740352239,0.16473305,91191.0,91190.0,0.10966]
[1731740352694,0.16644825,91191.0,91190.0,0.10966]
[1731740352859,0.17646184,91191.0,91190.0,0.10966]
[1731740353665,0.16644825,91191.0,91190.0,0.10966]
[1731740353927,0.13631577,91191.0,91190.0,0.10966]
[1731740354206,0.18530994,91191.0,91190.0,0.10966]
[1731740354365,0.1664771,91191.0,91190.0,0.10966]
[1731740354885,0.13632684,91191.0,91190.0,0.10966]
[1731740360105,0.11748293,91191.0,91190.0,0.10966]
[1731740360308,0.13634122,91191.0,91190.0,0.10966]
[1731740363382,0.13634053,91191.0,91190.0,0.10966]
[1731740366576,0.11748293,91191.0,91190.0,0.10966]
[1731740366783,0.13633327,91191.0,91190.0,0.10966]
[1731740368842,0.1363333,91191.0,91190.0,0.10966]
[1731740373394,0.13633916,91191.0,91190.0,0.10966]
[1731740374490,0.13633916,91191.0,91184.0,0.09855359]
[1731740374701,0.01885623,91190.0,91185.0,0.109666]
[1731740374906,0.01885623,91190.0,91181.0,0.2202003]
[1731740374907,0.10906255,91189.0,91186.0,0.109665]
[1731740375114,0.13452291,91189.0,91186.0,0.109665]
[1731740375328,0.01885623,91188.0,91186.0,0.109665]
[1731740375537,0.0772,91186.0,91181.0,0.0008573]
[1731740375777,0.10906255,91185.0,91181.0,0.0008573]
[1731740375995,0.01885623,91184.0,91181.0,0.0008573]
[1731740376201,0.12791878,91183.0,91182.0,0.109669]
[1731740376678,0.13451722,91183.0,91182.0,0.109669]
[1731740378411,0.13451722,91183.0,91181.0,0.0008573]
[1731740378632,0.11566099,91183.0,91181.0,0.0008573]
[1731740378847,0.11566099,91183.0,91181.0,0.1105283]
[1731740380459,0.0594,91182.0,91181.0,0.0008573]
[1731740380670,0.13789484,91182.0,91181.0,0.0008573]
[1731740380909,0.25416234,91182.0,91181.0,0.0008573]
[1731740385102,0.14449234,91182.0,91181.0,0.0008573]
[1731740385944,0.12566005,91182.0,91181.0,0.0008573]
[1731740386151,0.14445761,91182.0,91181.0,0.0008573]
[1731740386781,0.14445587,91182.0,91181.0,0.0008573]
[1731740386993,0.12566005,91182.0,91181.0,0.0008573]
[1731740387419,0.12066005,91182.0,91181.0,0.1105283]
[1731740390935,0.11566005,91182.0,91181.0,0.1105283]
[1731740391150,0.10906255,91182.0,91181.0,0.1105283]
[1731740394608,0.11406255,91182.0,91181.0,0.1105283]
[1731740394818,0.10906255,91182.0,91181.0,0.1105283]
[1731740395998,0.11406255,91182.0,91181.0,0.1105283]
[1731740397012,0.11406255,91182.0,91181.0,0.0008573]
[1731740397013,0.30833255,91182.0,91181.0,0.0008573]
[1731740397230,0.31490884,91182.0,91181.0,0.0008573]
[1731740397452,0.20523884,91182.0,91181.0,0.0008573]
[1731740398019,0.22403962,91182.0,91181.0,0.0008573]
[1731740401349,0.21903962,91182.0,91181.0,0.1105283]
[1731740402062,0.22403962,91182.0,91181.0,0.1105283]
[1731740402269,0.22403962,91182.0,91181.0,0.0008573]
[1731740402920,0.33370962,91182.0,91181.0,0.0008573]
[1731740403983,0.34371228,91182.0,91181.0,0.0008573]
[1731740404414,0.37382386,91182.0,91181.0,0.0008573]
[1731740404617,0.34371228,91182.0,91181.0,0.0008573]
[1731740405040,0.37381558,91182.0,91181.0,0.0008573]
[1731740406213,0.23404228,91182.0,91181.0,0.0008573]
[1731740406413,0.22403962,91182.0,91181.0,0.0008573]
[1731740407188,0.22403962,91182.0,91181.0,0.1105283]
[1731740407189,0.20523884,91182.0,91181.0,0.1105283]
[1731740407369,0.12063884,91182.0,91181.0,0.1105283]
[1731740407569,0.12563884,91182.0,91181.0,0.1105283]
[1731740407968,0.12063884,91182.0,91181.0,0.1105283]
[1731740408406,0.12563884,91182.0,91181.0,0.1105283]
[1731740408636,0.12063884,91182.0,91181.0,0.1105283]
[1731740409285,0.12235404,91182.0,91181.0,0.1105283]
[1731740410039,0.12735404,91182.0,91181.0,0.1105283]
[1731740411407,0.23702404,91182.0,91181.0,0.0008573]
[1731740411616,0.35802404,91182.0,91181.0,0.0008573]
[1731740412076,0.3768348,91182.0,91181.0,0.0008573]
[1731740413409,0.3768348,91182.0,91174.0,0.109679]
[1731740413410,0.005,91176.0,91174.0,0.109679]
[1731740413618,0.10906255,91175.0,91174.0,0.109679]
[1731740419302,0.11557933,91175.0,91174.0,0.109679]
[1731740421500,0.11729453,91175.0,91174.0,0.109679]
[1731740424176,0.0753,91174.0,91171.0,0.0008576]
[1731740424394,0.11557887,91173.0,91172.0,0.109682]
[1731740424616,0.11557887,91173.0,91171.0,0.1105406]
[1731740425057,0.11557887,91173.0,91171.0,0.0008576]
[1731740425267,0.11557887,91173.0,91172.0,0.109682]
[1731740430136,0.005,91172.0,91171.0,0.0008576]
[1731740430419,0.12057465,91172.0,91171.0,0.0008576]
[1731740431999,0.12057465,91172.0,91171.0,0.1105416]
[1731740432880,0.11406255,91172.0,91171.0,0.1105416]
[1731740433750,0.12057465,91172.0,91171.0,0.1105416]
[1731740434391,0.12057465,91172.0,91171.0,0.0008576]
[1731740434828,0.12057465,91172.0,91171.0,0.1105416]
[1731740435277,0.12057465,91172.0,91171.0,0.0008576]
[1731740436388,0.11557465,91172.0,91171.0,0.1105416]
[1731740437283,0.11557465,91172.0,91171.0,0.19228962]
[1731740437507,0.10906255,91172.0,91171.0,0.19228962]
[1731740441777,0.10906255,91172.0,91171.0,0.1105416]
[1731740442214,0.1155693,91172.0,91171.0,0.1105416]
[1731740442436,0.10906255,91172.0,91171.0,0.1105416]
[1731740443952,0.1155771,91172.0,91171.0,0.1105416]
[1731740444158,0.10906255,91172.0,91171.0,0.1105416]
[1731740445091,0.11077775,91172.0,91171.0,0.1105416]
[1731740446166,0.1172923,91172.0,91171.0,0.1105416]
[1731740447684,0.1985923,91172.0,91171.0,0.1105416]
[1731740448226,0.1985923,91172.0,91171.0,0.0008576]
[1731740448439,0.3132743,91172.0,91171.0,0.0008576]
[1731740449054,0.2035923,91172.0,91171.0,0.0008576]
[1731740449499,0.3132743,91172.0,91171.0,0.0008576]
[1731740451856,0.2035923,91172.0,91171.0,0.0008576]
[1731740452351,0.3132743,91172.0,91171.0,0.0008576]
[1731740452989,0.3182743,91172.0,91171.0,0.0008576]
[1731740454122,0.3182743,91172.0,91171.0,0.1105416]
[1731740454123,0.2085923,91172.0,91171.0,0.1105416]
[1731740454333,0.2085923,91172.0,91171.0,0.0008576]
[1731740458336,0.1272923,91172.0,91171.0,0.0008576]
[1731740459555,0.1172923,91172.0,91171.0,0.1105416]
[1731740459786,0.1172923,91172.0,91171.0,0.1596416]
[1731740460253,0.11077775,91172.0,91171.0,0.1596416]
[1731740464638,0.11077775,91172.0,91171.0,0.24138962]
[1731740465393,0.11077775,91172.0,91171.0,0.19228962]
[1731740465594,0.11077775,91172.0,91171.0,0.1105416]
[1731740465799,0.11577775,91172.0,91171.0,0.0008576]
[1731740466000,0.1222824,91172.0,91171.0,0.1105416]
[1731740467506,0.1222824,91172.0,91171.0,0.0008576]
[1731740467738,0.2369644,91172.0,91171.0,0.0008576]
[1731740468370,0.3185644,91172.0,91171.0,0.0008576]
[1731740472011,0.33731479,91172.0,91171.0,0.0008576]
[1731740472885,0.3472808,91172.0,91171.0,0.0008576]
[1731740474245,0.2375988,91172.0,91171.0,0.0008576]
[1731740474461,0.1559988,91172.0,91171.0,0.0008576]
[1731740474697,0.14603279,91172.0,91171.0,0.0008576]
[1731740474926,0.2369644,91172.0,91171.0,0.0008576]
[1731740477010,0.1172824,91172.0,91171.0,0.1105416]
[1731740477450,0.11577775,91172.0,91171.0,0.1105416]
[1731740477669,0.12228188,91172.0,91171.0,0.1105416]
[1731740477890,0.12728188,91172.0,91171.0,0.1105416]
[1731740478101,0.11728188,91172.0,91171.0,0.1105416]
[1731740478579,0.11077775,91172.0,91171.0,0.19228962]
[1731740478788,0.0017152,91172.0,91171.0,0.19228962]
[1731740479026,0.0017152,91172.0,91171.0,0.31988962]
[1731740479946,0.0017152,91172.0,91171.0,0.2381416]
[1731740480194,0.0017152,91172.0,91171.0,0.1105416]
[1731740480195,0.11077775,91172.0,91171.0,0.1105416]
[1731740487443,0.11077775,91172.0,91171.0,0.2381416]
[1731740487444,0.0017152,91172.0,91171.0,0.2381416]
[1731740488586,0.0017152,91172.0,91171.0,0.1581416]
[1731740491064,0.11077775,91172.0,91171.0,0.1105416]
[1731740491763,0.11729194,91172.0,91171.0,0.1105416]
[1731740497063,0.11077775,91172.0,91171.0,0.1105416]
[1731740508296,0.0017152,91172.0,91171.0,0.1105416]
[1731740509601,0.0017152,91172.0,91171.0,0.1575416]
[1731740509827,0.0017152,91172.0,91171.0,0.2378416]
[1731740510744,0.0017152,91172.0,91171.0,0.29316168]
[1731740512269,0.0017152,91172.0,91171.0,0.5068011]
[1731740512707,0.0017152,91172.0,91171.0,0.53910984]
[1731740513357,0.0017152,91172.0,91171.0,0.5068011]
[1731740513565,0.0017152,91172.0,91171.0,0.2608416]
[1731740514884,0.0017152,91175.0,91174.0,0.13268]
[1731740515104,0.0017152,91175.0,91174.0,0.40750388]
[1731740515795,0.0017152,91175.0,91174.0,0.40748601]
[1731740516007,0.0017152,91182.0,91181.0,0.359671]
[1731740516220,0.0017152,91182.0,91181.0,0.67346704]
[1731740517321,0.0017152,91182.0,91181.0,0.82090013]
[1731740519952,0.0017152,91182.0,91181.0,0.67346704]
[1731740520401,0.0017152,91182.0,91181.0,0.87010529]
[1731740521984,0.0017152,91182.0,91181.0,0.67346704]
[1731740522207,0.0017152,91182.0,91181.0,0.87010529]
[1731740522650,0.0017152,91182.0,91181.0,0.67346704]
[1731740523071,0.0017152,91182.0,91181.0,0.31379604]
[1731740523511,0.0017152,91182.0,91181.0,0.42346704]
[1731740523728,0.0017152,91182.0,91181.0,0.52171248]
[1731740524188,0.0017152,91182.0,91181.0,0.35821644]